lending/lending_fUSD_20251107
["ID","MTS","AMOUNT","RATE_DAILY","PERIOD"]
[393329713,1762483840551,-2250.91847681,0.00017999,3]
[393329714,1762483840561,-500.0,0.00017999,2]
[393329715,1762483840570,-500.0,0.00017999,2]
[393329716,1762483840579,-500.0,0.00017999,2]
[393329717,1762483840589,-521.42005394,0.00017999,2]
[393329718,1762483840599,-500.0,0.00017999,2]
[393329719,1762483840778,-500.0,0.00017999,2]
[393329720,1762483840788,-318.42090944,0.00017999,2]
[393329721,1762483840798,-363.54570118,0.00017999,2]
[393329722,1762483840807,-516.85609172,0.00017999,2]
[393329723,1762483840817,-457.61873137,0.00017999,2]
[393329724,1762483840826,-500.0,0.00017999,2]
[393329725,1762483840837,-500.0,0.00017999,2]
[393329726,1762483840846,-500.0,0.00017999,2]
[393329727,1762483840857,-500.0,0.00017999,2]
[393329728,1762483840870,-500.0,0.00017999,2]
[393329729,1762483840881,-1667.0,0.00018,2]
[393329730,1762483840891,-406307.10580414,0.00018,2]
[393329731,1762483840911,-99835.91244737,0.00018,2]
[393329732,1762483840923,-925.2136908,0.00018,2]
[393329733,1762483840938,-1073.28860135,0.00018,2]
[393329734,1762483840953,-98930.83172207,0.00018,2]
[393329735,1762483840966,-25959.31980334,0.00018,2]
[393329736,1762483840980,-2479.47038756,0.00018,2]
[393329737,1762483841167,-1080.8172,0.00018,2]
[393329742,1762483842997,-150.0,0.00017899,2]
[393329743,1762483843008,-150.91035667,0.00017899,2]
[393329744,1762483843018,-3566.58738643,0.00018,2]
[393329745,1762483843104,-590324.41536762,0.00018,2]
[393329746,1762483843116,-150847.48997609,0.00018,2]
[393329747,1762483843128,-279898.43095697,0.00018,2]
[393329748,1762483843140,-3981.16016373,0.00018,2]
[393329749,1762483843224,-25.12158037,0.00018,2]
[393329766,1762483886960,-5000.0,0.000178,2]
[393329767,1762483889858,-500.0,0.00017899,2]
[393329768,1762483889889,-150.0,0.00017899,2]
[393329769,1762483892894,-460.63090937,0.00017899,2]
[393329770,1762483898939,-9918.28666761,0.000179,2]
[393329771,1762484032886,-250.0,0.00017078,2]
[393329772,1762484032916,-300.0,0.000176,6]
[393329773,1762484032952,-600.0,0.000177,6]
[393329774,1762484032980,-933.01788188,0.000177,2]
[393329776,1762484114164,159.87,0.000301,120]
[393329777,1762484119137,3599.61820339,0.0003873,30]
[393329888,1762484150546,-150.0,0.00017025,2]
[393329896,1762484257787,159.5,0.000301,120]
[393329897,1762484296594,159.0,0.000173,2]
[393329898,1762484303552,159.0,0.000173,2]
[393329899,1762484305545,-757.0,0.00017348,2]
[393329900,1762484305574,-757.0,0.00017432,2]
[393329901,1762484305602,-757.0,0.00017528,2]
[393329902,1762484305630,-331.03,0.00017593,2]
[393329903,1762484305662,-893.85465609,0.00017649,2]
[393329904,1762484305689,-757.0,0.00017693,2]
[393329905,1762484305717,-300.0,0.00017699,2]
[393329906,1762484305744,-403.10384519,0.000177,2]
[393329907,1762484308223,-88.03299744,0.000177,2]
[393329908,1762484308250,-184.05290021,0.000177,2]
[393329909,1762484308325,-9243.87120214,0.000177,2]
[393329910,1762484329471,-1000.0,0.00016917,2]
[393329911,1762484336828,1209.29,0.00016911,2]
[393329912,1762484344460,-250.0,0.00017,2]
[393329963,1762484430834,767.99,0.00013699,2]
[393329965,1762484474453,500.0,0.00038733,120]
[393329966,1762484474688,500.0,0.00038733,120]
[393329967,1762484474929,500.0,0.00038733,120]
[393329968,1762484475161,500.0,0.00038733,120]
[393329969,1762484475393,500.0,0.00038733,120]
[393329970,1762484475623,500.0,0.00038733,120]
[393329971,1762484475883,352.1088077,0.00038733,120]
[393329972,1762484499441,-221.84453216,0.00017537,2]
[393329973,1762484499470,-250.0,0.00017543,2]
[393329974,1762484499498,-1316.0,0.0001755,2]
[393329975,1762484499621,-4447.04093568,0.0001755,2]
[393329982,1762484624124,-2028.95906432,0.0001755,2]
[393329983,1762484624156,-1596.0,0.0001755,2]
[393329984,1762484624186,-820.0,0.0001755,2]
[393329985,1762484624217,-205.09187136,0.0001755,2]
[393329986,1762484624288,-699.90812864,0.0001755,2]
[393329996,1762484793323,400.0,0.0003,120]
[393329997,1762484804106,-1200.0,0.00017549,2]
[393329998,1762484804134,-814.749,0.0001755,2]
[393329999,1762484804160,-1274.403,0.0001755,2]
[393330000,1762484804190,-300.0,0.00017681,2]
[393330001,1762484804223,-328.0,0.00017682,2]
[393330002,1762484804253,-948.689092,0.00017682,2]
[393330004,1762484831416,1500.0,0.0003,120]
[393330007,1762484910806,759.0,0.0003,120]
[393330008,1762484972515,-400.0,0.000175,6]
[393330009,1762484972537,-800.0,0.000176,6]
[393330010,1762484972558,-893.85465609,0.0001768,2]
[393330011,1762484972578,-300.0,0.00017698,2]
[393330012,1762484972598,-550.0,0.00017698,2]
[393330013,1762484972617,-1000.0,0.00017699,2]
[393330014,1762484972637,-500.0,0.00017699,2]
[393330015,1762484972657,-500.0,0.00017699,2]
[393330016,1762484972677,-500.0,0.00017699,2]
[393330017,1762484972697,-500.0,0.00017699,2]
[393330018,1762484972716,-500.0,0.00017699,2]
[393330019,1762484972736,-500.0,0.00017699,2]
[393330020,1762484972755,-500.0,0.00017699,2]
[393330021,1762484972775,-500.0,0.00017699,2]
[393330022,1762484972794,-500.0,0.00017699,2]
[393330023,1762484972816,-500.0,0.00017699,2]
[393330024,1762484972835,-500.0,0.00017699,2]
[393330025,1762484972855,-500.0,0.00017699,2]
[393330026,1762484972874,-500.0,0.00017699,2]
[393330027,1762484972893,-500.0,0.00017699,2]
[393330028,1762484972914,-500.0,0.00017699,2]
[393330029,1762484972934,-12292.24410253,0.000177,2]
[393330030,1762484972954,-1000.0,0.000177,2]
[393330031,1762484972974,-1200.0,0.000177,6]
[393330032,1762484972993,-165.64761027,0.000177,2]
[393330033,1762484973014,-757.0,0.00017733,2]
[393330034,1762484973036,-757.0,0.00017735,2]
[393330035,1762484973056,-500.0,0.00017773,2]
[393330036,1762484973076,-500.0,0.00017773,2]
[393330037,1762484973097,-502.91924862,0.00017773,2]
[393330038,1762484973117,-500.0,0.00017773,2]
[393330039,1762484973137,-188.53952491,0.00017798,2]
[393330040,1762484973162,-192.79485758,0.00017798,2]
[393330044,1762485026183,-2000.0,0.00017633,2]
[393330045,1762485032071,-1395.1738935,0.00017633,2]
[393330046,1762485032080,-625.21960734,0.000177,2]
[393330047,1762485032090,-329.0,0.000177,2]
[393330049,1762485032099,-240.57800257,0.00017797,2]
[393330050,1762485032112,-59.42199743,0.00017797,2]
[393330051,1762485032121,-1200.0,0.00017797,2]
[393330052,1762485032130,-300.0,0.00017797,2]
[393330053,1762485032139,-307.20514242,0.00017798,2]
[393330054,1762485032148,-163.02217206,0.00017798,2]
[393330055,1762485032157,-500.0,0.00017798,2]
[393330056,1762485032166,-500.0,0.00017798,2]
[393330057,1762485032175,-500.0,0.00017798,2]
[393330058,1762485032184,-160.85137201,0.00017798,2]
[393330059,1762485032193,-240.33579689,0.00017798,2]
[393330060,1762485032205,-158.45181949,0.00017798,2]
[393330061,1762485032214,-217.20501353,0.00017798,2]
[393330062,1762485032223,-516.85609172,0.00017798,2]
[393330063,1762485032232,-457.61873137,0.00017798,2]
[393330064,1762485032240,-500.0,0.00017798,2]
[393330065,1762485032249,-500.0,0.00017798,2]
[393330066,1762485032258,-512.88854139,0.00017798,2]
[393330067,1762485032267,-500.0,0.00017798,2]
[393330068,1762485032276,-500.0,0.00017798,2]
[393330069,1762485032285,-500.0,0.00017798,2]
[393330070,1762485032294,-500.0,0.00017798,2]
[393330071,1762485032303,-507.61057282,0.00017798,2]
[393330072,1762485032316,-156.10498998,0.00017798,2]
[393330073,1762485032325,-500.0,0.00017798,2]
[393330074,1762485032334,-500.0,0.00017798,2]
[393330075,1762485032344,-500.0,0.00017798,2]
[393330076,1762485032355,-102866.56490073,0.00017799,2]
[393330077,1762485032372,-1368.79074071,0.00017799,2]
[393330078,1762485032385,-300.0,0.00017799,2]
[393330080,1762485032396,-612.54757404,0.00017799,2]
[393330082,1762485032406,-454.9276565,0.00017799,2]
[393330084,1762485032417,-2050.3061272,0.00017799,2]
[393330086,1762485032436,-357.0363872,0.00017799,2]
[393330087,1762485032450,-912.23833158,0.00017799,2]
[393330088,1762485032461,-1195.1599104,0.00017799,2]
[393330089,1762485032472,-903.60764366,0.00017799,2]
[393330090,1762485032482,-534.39496866,0.00017799,2]
[393330091,1762485032493,-746.75156014,0.00017799,2]
[393330100,1762485038052,-1364.3871324,0.000177,2]
[393330101,1762485038063,-221.84453216,0.00017725,2]
[393330102,1762485038073,-500.0,0.00017798,2]
[393330103,1762485038083,-307697.67419918,0.00017799,2]
[393330104,1762485038094,-1600.0,0.000178,6]
[393330105,1762485038104,-954.15,0.00017808,2]
[393330106,1762485038114,-2733.10487,0.0001782,2]
[393330107,1762485038124,-168.0,0.00017824,2]
[393330108,1762485038134,-757.0,0.00017833,2]
[393330109,1762485038143,-757.0,0.00017858,2]
[393330110,1762485038153,-500.0,0.00017899,2]
[393330111,1762485038162,-174.3141501,0.000179,2]
[393330112,1762485038172,-477.12,0.000179,2]
[393330113,1762485038182,-477.12,0.000179,2]
[393330114,1762485038191,-163.49583489,0.000179,2]
[393330115,1762485038201,-150.0,0.000179,6]
[393330116,1762485038211,-500.0,0.000179,2]
[393330118,1762485038220,-571.0,0.000179,6]
[393330120,1762485038229,-202.69959715,0.000179,6]
[393330122,1762485038239,-150.0,0.000179,6]
[393330124,1762485038248,-500.0,0.000179,6]
[393330126,1762485038259,-641.38871949,0.000179,2]
[393330128,1762485038268,-226.5,0.000179,2]
[393330130,1762485038277,-226.5,0.000179,2]
[393330132,1762485038287,-320.69435974,0.000179,2]
[393330133,1762485038296,-2000.0,0.000179,6]
[393330134,1762485038307,-150.0,0.000179,2]
[393330135,1762485038319,-150.0,0.000179,6]
[393330136,1762485038329,-150.0,0.000179,6]
[393330137,1762485038338,-150.0,0.000179,2]
[393330138,1762485038348,-150.0,0.000179,6]
[393330139,1762485038360,-500.0,0.000179,6]
[393330140,1762485038369,-301.15,0.000179,2]
[393330141,1762485038379,-800.15428099,0.000179,2]
[393330142,1762485038390,-3795.663,0.00017913,2]
[393330143,1762485038400,-151.133,0.00017913,2]
[393330145,1762485038409,-2733.10487,0.0001793,2]
[393330146,1762485038418,-1188.0,0.00017935,2]
[393330147,1762485038427,-905.0,0.00017935,2]
[393330148,1762485038437,-757.0,0.00017939,2]
[393330149,1762485038446,-168.0,0.00017941,2]
[393330150,1762485038455,-2106.6957,0.00017945,2]
[393330151,1762485038465,-559.0,0.0001796,2]
[393330152,1762485038474,-6669.989,0.0001796,2]
[393330153,1762485038483,-2142.0,0.0001796,2]
[393330154,1762485038493,-200.0,0.00017963,2]
[393330155,1762485038502,-150.0,0.00017963,2]
[393330156,1762485038512,-150.115,0.00017963,2]
[393330157,1762485038521,-150.177,0.00017963,2]
[393330158,1762485038530,-211.33,0.00017963,2]
[393330159,1762485038539,-288.312,0.00017963,2]
[393330160,1762485038549,-150.0,0.00017963,2]
[393330161,1762485038559,-150.171,0.00017963,2]
[393330162,1762485038568,-3424.0,0.00017963,2]
[393330163,1762485038577,-574.0,0.00017963,2]
[393330164,1762485038587,-609.363,0.00017963,2]
[393330165,1762485038596,-150.0,0.00017963,2]
[393330166,1762485038606,-201.77170625,0.00017963,2]
[393330167,1762485038616,-500.0,0.00017972,2]
[393330168,1762485038626,-500.0,0.00017972,2]
[393330169,1762485038635,-532.09066203,0.00017972,2]
[393330170,1762485038645,-500.0,0.00017972,2]
[393330171,1762485038654,-317.72302571,0.00017972,2]
[393330172,1762485038663,-500.0,0.00017972,2]
[393330173,1762485038672,-511.00752985,0.00017972,2]
[393330174,1762485038682,-500.0,0.00017972,2]
[393330175,1762485038691,-167.0,0.00017973,2]
[393330176,1762485038700,-444.0,0.00017973,2]
[393330177,1762485038710,-467.21226766,0.00017973,2]
[393330178,1762485038719,-503.85495564,0.00017973,2]
[393330179,1762485038729,-500.0,0.00017973,2]
[393330180,1762485038740,-576.8099022,0.00017973,2]
[393330181,1762485038749,-502.54057635,0.00017973,2]
[393330182,1762485038759,-500.0,0.00017973,2]
[393330183,1762485038769,-500.0,0.00017973,2]
[393330184,1762485038778,-150.0,0.00017973,2]
[393330185,1762485038788,-500.0,0.00017973,2]
[393330186,1762485038798,-150.0,0.00017973,2]
[393330187,1762485038807,-500.0,0.00017973,2]
[393330188,1762485038817,-500.0,0.00017973,2]
[393330189,1762485038827,-206.29164213,0.00017973,2]
[393330190,1762485038836,-150.0,0.00017973,2]
[393330191,1762485038846,-500.0,0.00017973,2]
[393330192,1762485038856,-150.0,0.00017973,2]
[393330193,1762485038869,-585.8,0.00017973,2]
[393330194,1762485038879,-5800.0,0.00017973,2]
[393330195,1762485038890,-5800.0,0.00017982,2]
[393330196,1762485038900,-500.0,0.00017982,2]
[393330197,1762485038910,-28732.2975191,0.00017986,2]
[393330198,1762485038920,-8241.9494216,0.00017986,2]
[393330199,1762485038930,-5800.0,0.0001799,2]
[393330200,1762485038939,-1155.004831,0.00017994,2]
[393330201,1762485038949,-9208.6954034,0.00017994,2]
[393330202,1762485038958,-8616.6983001,0.00017998,2]
[393330203,1762485038968,-170509.1095983,0.00017998,2]
[393330204,1762485038978,-3330.2643118,0.00017998,2]
[393330205,1762485038988,-5800.0,0.00017999,2]
[393330206,1762485038998,-1000.6072,0.00017999,2]
[393330207,1762485039008,-2250.91847681,0.00017999,3]
[393330208,1762485039019,-244.77701906,0.00017999,2]
[393330209,1762485039029,-150.0,0.00017999,2]
[393330210,1762485039039,-150.0,0.00017999,2]
[393330211,1762485039048,-150.0,0.00017999,2]
[393330212,1762485039058,-318.42090944,0.00017999,2]
[393330213,1762485039068,-432.13543387,0.00017999,2]
[393330214,1762485039079,-363.54570118,0.00017999,2]
[393330215,1762485039088,-500.0,0.00017999,2]
[393330216,1762485039098,-500.0,0.00017999,2]
[393330217,1762485039108,-500.0,0.00017999,2]
[393330218,1762485039119,-500.0,0.00017999,2]
[393330219,1762485039128,-400.2074192,0.00017999,2]
[393330220,1762485039138,-497.37467964,0.00017999,2]
[393330221,1762485039147,-328.95832951,0.00017999,2]
[393330222,1762485039157,-1454.0,0.00018,2]
[393330223,1762485039167,-642164.2536804,0.00018,2]
[393330224,1762485039176,-883.88688814,0.00018,2]
[393330225,1762485039186,-368.26,0.00018,2]
[393330226,1762485039195,-2814259.22180074,0.00018,2]
[393330227,1762485039204,-150.0,0.00018,2]
[393330228,1762485039214,-594.79762274,0.00018,2]
[393330229,1762485039223,-150.0,0.00018,2]
[393330230,1762485039232,-1439.81690015,0.00018,2]
[393330231,1762485039241,-200.0,0.00018,2]
[393330232,1762485039250,-151.0,0.00018,2]
[393330233,1762485039259,-154.948938,0.00018,2]
[393330234,1762485039269,-170.209544,0.00018,2]
[393330235,1762485039278,-150.0,0.00018,2]
[393330236,1762485039288,-151.609357,0.00018,2]
[393330237,1762485039297,-2742.82909264,0.00018,2]
[393330238,1762485039307,-152.888891,0.00018,2]
[393330239,1762485039319,-150.0,0.00018,2]
[393330240,1762485039330,-1195.5092866,0.00018,2]
[393330241,1762485039339,-150.0,0.00018,2]
[393330242,1762485039348,-2370.91853627,0.00018,2]
[393330243,1762485039358,-151.0,0.00018,2]
[393330244,1762485039367,-161.113771,0.00018,2]
[393330245,1762485039376,-155.140863,0.00018,2]
[393330246,1762485039386,-151.0,0.00018,2]
[393330247,1762485039396,-170.812782,0.00018,2]
[393330248,1762485039405,-154.853143,0.00018,2]
[393330249,1762485039414,-151.0,0.00018,2]
[393330250,1762485039423,-156.838166,0.00018,2]
[393330251,1762485039433,-152.751498,0.00018,2]
[393330252,1762485039443,-151.0,0.00018,2]
[393330253,1762485039452,-159.09701,0.00018,2]
[393330254,1762485039461,-212.890596,0.00018,2]
[393330255,1762485039470,-151.000008,0.00018,2]
[393330256,1762485039479,-154.619845,0.00018,2]
[393330257,1762485039488,-171.130794,0.00018,2]
[393330258,1762485039497,-151.0,0.00018,2]
[393330259,1762485039506,-151.0,0.00018,2]
[393330260,1762485039515,-151.0,0.00018,2]
[393330261,1762485039524,-158.628141,0.00018,2]
[393330262,1762485039533,-151.0,0.00018,2]
[393330263,1762485039542,-151.0,0.00018,2]
[393330264,1762485039551,-163.557123,0.00018,2]
[393330265,1762485039559,-278.855926,0.00018,2]
[393330266,1762485039568,-164.771008,0.00018,2]
[393330267,1762485039577,-151.0,0.00018,2]
[393330268,1762485039586,-151.0,0.00018,2]
[393330269,1762485039595,-151.0,0.00018,2]
[393330270,1762485039603,-151.0,0.00018,2]
[393330271,1762485039613,-151.0,0.00018,2]
[393330272,1762485039622,-1148.706566,0.00018,2]
[393330273,1762485039632,-166.673318,0.00018,2]
[393330274,1762485039641,-1148.706566,0.00018,2]
[393330275,1762485039650,-1148.706566,0.00018,2]
[393330276,1762485039660,-1148.706566,0.00018,2]
[393330277,1762485039669,-151.0,0.00018,2]
[393330278,1762485039678,-151.0,0.00018,2]
[393330279,1762485039687,-151.0,0.00018,2]
[393330280,1762485039696,-151.0,0.00018,2]
[393330281,1762485039705,-163.106762,0.00018,2]
[393330282,1762485039714,-151.0,0.00018,2]
[393330283,1762485039723,-164.219662,0.00018,2]
[393330284,1762485039732,-151.0,0.00018,2]
[393330285,1762485039742,-195.190223,0.00018,2]
[393330286,1762485039751,-151.0,0.00018,2]
[393330287,1762485039760,-151.0,0.00018,2]
[393330288,1762485039769,-162.62384,0.00018,2]
[393330289,1762485039779,-151.0,0.00018,2]
[393330290,1762485039787,-151.0,0.00018,2]
[393330291,1762485039798,-151.0,0.00018,2]
[393330292,1762485039807,-151.0,0.00018,2]
[393330293,1762485039816,-151.0,0.00018,2]
[393330294,1762485039826,-248.739953,0.00018,2]
[393330295,1762485039836,-151.0,0.00018,2]
[393330296,1762485039845,-151.0,0.00018,2]
[393330297,1762485039855,-151.0,0.00018,2]
[393330298,1762485039865,-151.0,0.00018,2]
[393330299,1762485039874,-151.0,0.00018,2]
[393330300,1762485039883,-151.0,0.00018,2]
[393330301,1762485039893,-151.0,0.00018,2]
[393330302,1762485039902,-151.0,0.00018,2]
[393330303,1762485039911,-151.0,0.00018,2]
[393330304,1762485039920,-208.051066,0.00018,2]
[393330305,1762485039930,-151.0,0.00018,2]
[393330306,1762485039939,-151.0,0.00018,2]
[393330307,1762485039949,-161.013308,0.00018,2]
[393330308,1762485039958,-161.013308,0.00018,2]
[393330309,1762485039967,-161.013308,0.00018,2]
[393330310,1762485039976,-161.013308,0.00018,2]
[393330311,1762485039985,-151.0,0.00018,2]
[393330312,1762485039994,-161.013308,0.00018,2]
[393330313,1762485040003,-151.0,0.00018,2]
[393330315,1762485040013,-161.013308,0.00018,2]
[393330317,1762485040022,-161.013308,0.00018,2]
[393330319,1762485040031,-161.013308,0.00018,2]
[393330321,1762485040040,-151.0,0.00018,2]
[393330322,1762485040049,-231.493995,0.00018,2]
[393330323,1762485040058,-151.0,0.00018,2]
[393330324,1762485040068,-218.966974,0.00018,2]
[393330325,1762485040077,-151.0,0.00018,2]
[393330326,1762485040086,-271.678733,0.00018,2]
[393330328,1762485040095,-151.0,0.00018,2]
[393330329,1762485040105,-271.678733,0.00018,2]
[393330330,1762485040114,-151.0,0.00018,2]
[393330331,1762485040123,-166.0127,0.00018,2]
[393330332,1762485040132,-151.0,0.00018,2]
[393330333,1762485040141,-151.0,0.00018,2]
[393330334,1762485040152,-271.678733,0.00018,2]
[393330335,1762485040161,-151.0,0.00018,2]
[393330336,1762485040170,-151.0,0.00018,2]
[393330337,1762485040179,-271.678733,0.00018,2]
[393330338,1762485040189,-151.0,0.00018,2]
[393330339,1762485040198,-271.678733,0.00018,2]
[393330340,1762485040207,-296.415688,0.00018,2]
[393330341,1762485040216,-151.0,0.00018,2]
[393330342,1762485040226,-271.678733,0.00018,2]
[393330343,1762485040235,-151.0,0.00018,2]
[393330344,1762485040243,-151.0,0.00018,2]
[393330345,1762485040252,-151.0,0.00018,2]
[393330346,1762485040261,-151.0,0.00018,2]
[393330347,1762485040271,-271.678733,0.00018,2]
[393330348,1762485040281,-271.678733,0.00018,2]
[393330349,1762485040291,-151.0,0.00018,2]
[393330350,1762485040301,-151.0,0.00018,2]
[393330351,1762485040312,-151.0,0.00018,2]
[393330352,1762485040322,-151.0,0.00018,2]
[393330353,1762485040332,-465.808135,0.00018,2]
[393330354,1762485040341,-465.808135,0.00018,2]
[393330355,1762485040350,-187.739093,0.00018,2]
[393330356,1762485040361,-465.808135,0.00018,2]
[393330357,1762485040371,-465.808135,0.00018,2]
[393330358,1762485040379,-465.808135,0.00018,2]
[393330359,1762485040389,-465.808135,0.00018,2]
[393330360,1762485040398,-465.808135,0.00018,2]
[393330361,1762485040409,-465.808135,0.00018,2]
[393330362,1762485040418,-151.0,0.00018,2]
[393330363,1762485040427,-151.0,0.00018,2]
[393330365,1762485040437,-170.037551,0.00018,2]
[393330366,1762485040447,-151.0,0.00018,2]
[393330367,1762485040456,-161.742778,0.00018,2]
[393330368,1762485040465,-151.0,0.00018,2]
[393330369,1762485040474,-151.0,0.00018,2]
[393330370,1762485040483,-173.854535,0.00018,2]
[393330372,1762485040493,-151.0,0.00018,2]
[393330373,1762485040507,-151.0,0.00018,2]
[393330374,1762485040517,-159.621312,0.00018,2]
[393330375,1762485040527,-151.0,0.00018,2]
[393330376,1762485040535,-209.475628,0.00018,2]
[393330377,1762485040545,-184.723214,0.00018,2]
[393330378,1762485040553,-407.024462,0.00018,2]
[393330379,1762485040562,-407.024462,0.00018,2]
[393330380,1762485040571,-407.024462,0.00018,2]
[393330381,1762485040580,-407.024462,0.00018,2]
[393330382,1762485040589,-200.51355,0.00018,2]
[393330383,1762485040598,-407.024462,0.00018,2]
[393330384,1762485040607,-407.024462,0.00018,2]
[393330385,1762485040617,-407.024462,0.00018,2]
[393330386,1762485040626,-407.024462,0.00018,2]
[393330387,1762485040635,-151.0,0.00018,2]
[393330388,1762485040645,-151.0,0.00018,2]
[393330389,1762485040654,-151.0,0.00018,2]
[393330390,1762485040663,-151.0,0.00018,2]
[393330391,1762485040673,-151.0,0.00018,2]
[393330392,1762485040682,-151.0,0.00018,2]
[393330393,1762485040690,-152.690055,0.00018,2]
[393330394,1762485040699,-236.806063,0.00018,2]
[393330395,1762485040708,-151.0,0.00018,2]
[393330396,1762485040718,-151.0,0.00018,2]
[393330397,1762485040727,-151.0,0.00018,2]
[393330398,1762485040736,-151.0,0.00018,2]
[393330399,1762485040745,-155.267409,0.00018,2]
[393330400,1762485040754,-3494.0,0.00018,2]
[393330401,1762485040763,-151.0,0.00018,2]
[393330402,1762485040772,-156.582746,0.00018,2]
[393330403,1762485040780,-179.675886,0.00018,2]
[393330404,1762485040789,-179.675886,0.00018,2]
[393330405,1762485040798,-179.675886,0.00018,2]
[393330406,1762485040807,-179.675886,0.00018,2]
[393330407,1762485040817,-179.675886,0.00018,2]
[393330408,1762485040826,-151.0,0.00018,2]
[393330409,1762485040836,-179.675886,0.00018,2]
[393330410,1762485040845,-153.823368,0.00018,2]
[393330411,1762485040854,-179.675886,0.00018,2]
[393330412,1762485040864,-179.675886,0.00018,2]
[393330413,1762485040873,-1630.140865,0.00018,2]
[393330414,1762485040883,-1630.140865,0.00018,2]
[393330415,1762485040893,-1630.140865,0.00018,2]
[393330416,1762485040903,-1630.140865,0.00018,2]
[393330417,1762485040913,-155.843168,0.00018,2]
[393330418,1762485040924,-1630.140865,0.00018,2]
[393330419,1762485040934,-1630.140865,0.00018,2]
[393330420,1762485040944,-151.0,0.00018,2]
[393330421,1762485040954,-151.0,0.00018,2]
[393330422,1762485040963,-204.943648,0.00018,2]
[393330423,1762485040973,-1630.140865,0.00018,2]
[393330424,1762485040982,-1630.140865,0.00018,2]
[393330425,1762485040992,-173.481491,0.00018,2]
[393330426,1762485041001,-173.481491,0.00018,2]
[393330427,1762485041011,-151.0,0.00018001,2]
[393330428,1762485041020,-162.37318191,0.00018029,2]
[393330429,1762485041029,-150.0,0.00018037,6]
[393330430,1762485041039,-500.0,0.00018037,2]
[393330431,1762485041048,-571.0,0.00018037,6]
[393330432,1762485041058,-150.0,0.00018037,6]
[393330433,1762485041067,-500.0,0.00018037,6]
[393330434,1762485041076,-150.0,0.00018037,6]
[393330435,1762485041085,-204.13542213,0.00018037,6]
[393330436,1762485041095,-270.03941934,0.00018037,6]
[393330437,1762485041104,-500.0,0.00018037,6]
[393330438,1762485041114,-210.66,0.00018069,2]
[393330439,1762485041123,-5114.01,0.00018073,7]
[393330440,1762485041132,-1000.0,0.00018082,2]
[393330441,1762485041141,-150.0,0.000181,2]
[393330442,1762485041150,-1762.69047223,0.000181,2]
[393330443,1762485041159,-631.0,0.00018103,2]
[393330444,1762485041168,-153.24433891,0.0001811,2]
[393330445,1762485041178,-604.69040435,0.0001811,2]
[393330446,1762485041187,-150.0,0.0001811,2]
[393330447,1762485041196,-500.0,0.0001811,2]
[393330448,1762485041205,-500.0,0.0001811,2]
[393330449,1762485041214,-150.0,0.0001811,2]
[393330450,1762485041223,-500.0,0.0001811,2]
[393330451,1762485041232,-150.0,0.0001811,2]